Cogmind - Beta 12 --- EXPLORER MODE // 2023.05.07 @ 18:41:40 Player: Olexender Result: Destroyed by P-70 Sage with Tesla Rifle Performance ------------- Evolutions (5) 2500 Regions Visited (8) 1600 Robots Destroyed (202) 1010 Value Destroyed (7751) 7751 Prototype IDs (13) 260 Alien Tech Used (0) 0 Bonus (1051) 1051 TOTAL SCORE: 14172 Bonus ------- High Alert Combat Kills 12 Follower Combat Kills 602 Entered DSFs 500 Friendly Fire -63 Cogmind --------- Core Integrity 0/1000 Matter 229/300 Energy 4/100 System Corruption 6% Temperature Cool (0) Movement Rolling (139) Location -5/Factory Parts ------- > --- POWER (2) -------- (None) > --- PROPULSION (6) --- Wheeled Weak-Titanium Exoskeleton > --- UTILITY (8) ------ Armored Scrap Engine Advanced Heat Sink Large Storage Unit Advanced Weight Redist. System Improved Focal Shield Improved System Shield Improved System Shield > --- WEAPON (2) ------- Kinetic Mag Construct/C Hpw. Thermic Wave Construct/G > --- INVENTORY (15) --- Advanced Heat Sink Advanced Heat Sink Medium Matter Pod (100) Medium Matter Pod (100) Advanced Weight Redist. System Advanced Sensor Array Improved Signal Interpreter Matter Filter Matter Filter Transmission Jammer Advanced ECM Suite Improved Focal Shield Improved Focal Shield Improved Field Recycling Unit (200) Improved Remote Datajack Peak State ------------ > --- POWER ------------ Deuterium Engine Neutrino Core > --- PROPULSION ------- Improved Carbon-fiber Leg Improved Carbon-fiber Leg Improved Titanium Leg Flexi-carbon Leg Improved VSS Leg Wheeled Weak-Titanium Exoskeleton > --- UTILITY ---------- Armored Scrap Engine Improved Cryofiber Web High-capacity Storage Unit Advanced Weight Redist. System Matter Filter Light Regenerative Plating Advanced Shield Generator > --- WEAPON ----------- KE Penetrator Hpw. Thermic Wave Construct/G > --- INVENTORY -------- Cryofiber Web Advanced Heat Sink Advanced Heat Sink Advanced Signal Interpreter Improved Targeting Computer Improved Medium Armor Plating Hardlight Generator Advanced Shield Generator Advanced Shield Generator Remote Force Field Improved System Shield Improved System Shield System Restoration Module System Restoration Module System Restoration Module Improved System Restoration Module Improved Field Recycling Unit KE Penetrator Improved Grenade Launcher Plasma Sword [Rating: 101] Favorites ----------- Power Constructs Engine Constructs Power Core Nuclear Core Propulsion Aluminum Leg Leg Aluminum Leg Wheel Constructs Utility Armored Scrap Engine Device Armored Scrap Engine Storage Large Storage Unit Processor Terrain Scan Processor Hackware Improved System Shield Protection Core Shielding Weapon Constructs Energy Gun Constructs Energy Cannon Advanced Beam Cannon Ballistic Gun Assault Rifle Ballistic Cannon Improved Light Cannon Launcher Improved Grenade Launcher Slashing Weapon Plasma Sword Build | -11 -10 -9 -9 -9 -7 -6 -6 -5 ------- Run | Jun Mat Mat Sto Rec Fac Fac DSF Fac Slots Evolved 11 | . 1 2 . . 4 2 . 2 Power 1 | . . . . . 1 . . . Propulsion 4 | . . 1 . . 1 1 . 1 Utility 6 | . 1 1 . . 2 1 . 1 Weapon . | . . . . . . . . . Parts Attached 208 | 8 19 23 30 3 48 2 13 62 Power 19 | 1 2 3 5 . 4 1 1 2 Engine 9 | 1 1 1 2 . 2 . 1 1 Core 10 | . 1 2 3 . 2 1 . 1 Reactor . | . . . . . . . . . Propulsion 53 | 2 7 7 5 . 19 . 7 6 Treads . | . . . . . . . . . Leg 53 | 2 7 7 5 . 19 . 7 6 Wheel . | . . . . . . . . . Hover . | . . . . . . . . . Flight . | . . . . . . . . . Utility 93 | 3 4 5 8 3 17 1 4 48 Device 67 | 1 1 4 2 2 12 1 4 40 Storage 9 | 1 1 . 4 . 1 . . 2 Processor 4 | . 2 . . . . . . 2 Hackware 3 | . . . . . 1 . . 2 Protection 10 | 1 . 1 2 1 3 . . 2 Artifact . | . . . . . . . . . Weapon 43 | 2 6 8 12 . 8 . 1 6 Energy Gun 3 | . 1 . 2 . . . . . Energy Cannon 8 | . . 1 5 . 2 . . . Ballistic Gun 13 | 2 4 1 2 . 1 . . 3 Ballistic Cannon 6 | . . 4 . . 2 . . . Launcher 3 | . . . . . 2 . . 1 Special Weapon . | . . . . . . . . . Impact Weapon . | . . . . . . . . . Slashing Weapon 10 | . 1 2 3 . 1 . 1 2 Piercing Weapon . | . . . . . . . . . Special Melee Weapon . | . . . . . . . . . Unidentified Prototypes 9 | . . 1 6 . . . . 2 Corrupted Parts 1 | . . . . . 1 . . . System Corruption 1 | . . . . . 1 . . . Parts Lost 59 | . . . . . 16 . 7 36 Power 11 | . . . . . 3 . 1 7 Propulsion 18 | . . . . . 7 . 2 9 Utility 22 | . . . . . 3 . 3 16 Weapon 8 | . . . . . 3 . 1 4 Highest Loss Streak 15 | . . . . . 4 . 3 15 To Critical Strikes 2 | . . . . . 1 . . 1 Average Slot Usage (%) 85 | . 98 99 98 100 85 75 81 71 Engine 5 | . 6 6 1 . 9 . 2 3 Core 4 | . 5 3 8 10 2 12 9 3 Leg 22 | . 24 29 29 30 21 12 23 16 Device 21 | . 12 19 18 24 23 25 23 23 Storage 7 | . 11 10 10 10 6 6 6 4 Processor 2 | . 10 9 . . . . . 1 Hackware 1 | . . . . . . . . 3 Protection 3 | . 2 . 10 5 4 6 3 . Energy Gun 2 | . 3 5 3 . 3 . . 1 Energy Cannon 3 | . . 4 6 10 4 . . 1 Ballistic Gun 5 | . 21 3 6 10 3 . . 3 Ballistic Cannon 2 | . . 6 2 . 1 6 2 1 Slashing Weapon 1 | . . . . . . . 3 2 Naked Turns . | . . . . . . . . . Heaviest Build 95 | 10 20 31 37 38 64 73 74 95 Greatest Support 118 | 20 20 33 39 39 76 34 94 118 Greatest Overweight (x) 24 | . 1 . 1 . 16 2 2 24 Average Overweight (x) . | . . . . . . 2 . . Largest Inventory Capacity 25 | 10 10 10 25 15 20 20 20 20 Average Capacity 14 | 5 9 10 11 15 15 20 20 17 Most Carried 20 | 5 10 10 13 15 15 9 17 20 Average Carried 12 | 2 6 8 10 14 12 8 12 15 Final Capacity 20 | 5 10 10 15 15 20 20 20 15 Final Carried 16 | 3 9 8 13 15 10 8 16 15 Scrap Engine Consumption 235 | . . . . . 29 . . 206 Constructs Created 14 | . . . . . 4 . . 10 Constructs Modified 58 | . . . . . 7 . . 51 Class Distribution -------------------- 87% | Hacker-Mutant 5% | Commander-Mutant 4% | Hacker-Construct Dominant Class ---------------- Hacker-Mutant | -10/Materials Hacker-Mutant | -9/Materials Commander-Mutant | -9/Storage Hacker-Mutant | -9/Recycling Hacker-Mutant | -7/Factory Hacker-Mutant | -6/Factory Hacker-Mutant | -6/DSF Hacker-Mutant | -5/Factory Resources | -11 -10 -9 -9 -9 -7 -6 -6 -5 ----------- Run | Jun Mat Mat Sto Rec Fac Fac DSF Fac Matter Collected 5462 | 290 568 787 486 45 1243 . 410 1633 Remotely . | . . . . . . . . . Salvage Created 8676 | 122 445 972 676 110 2055 . 538 3758 Parts 442 | 6 29 60 43 4 122 . 9 169 Haulers Intercepted 7 | . . . 4 . 1 . . 2 Recyclers Shooed 5 | . 1 1 . . . . . 3 Parts Field Recycled 18 | . . . . . . . . 18 Retrieved Matter 210 | . . . . . . . . 210 Parts Self-Destructed . | . . . . . . . . . Prevented . | . . . . . . . . . Kills | -11 -10 -9 -9 -9 -7 -6 -6 -5 ------- Run | Jun Mat Mat Sto Rec Fac Fac DSF Fac Combat Hostiles Destroyed 157 | . 9 28 11 2 45 . 11 51 Melee 11 | . . . . . . . . 11 Guns 67 | . 9 16 3 1 10 . . 28 Cannons 57 | . . 12 7 1 25 . 3 9 AOE 16 | . . . . . 9 . 7 . Classes Destroyed 16 | 2 3 2 2 . 6 . . 1 Worker 8 | . . . . . 3 . . 5 Builder 5 | . . . . . 2 . . 3 Tunneler 3 | 2 . . . . 1 . . . Hauler 7 | . . . 4 . 1 . . 2 Recycler 6 | 1 1 . . . 1 . . 3 Operator 1 | . . . 1 . . . . . Watcher 16 | . 2 2 1 . 6 . . 5 Swarmer 29 | . 2 10 . . 6 . 3 8 Grunt 66 | . 7 8 4 . 19 . 5 23 Brawler 1 | . . 1 . . . . . . Sentry 27 | . . 9 7 2 4 . . 5 Specialist 3 | . . . . . 1 . 2 . Hunter 9 | . . . . . 7 . . 2 Programmer 19 | . . . . . 7 . . 12 Heavy 2 | . . . . . 1 . 1 . Behemoth 1 | . . . . . . . . 1 Best Kill Streak 7 | 1 6 5 4 1 6 . 3 7 Combat Bots Only 6 | . 5 5 3 1 6 . 3 6 Max Kills in Single Turn 2 | 1 1 1 1 1 2 . 2 2 Gunslinging . | . . . . . . . . . Exploded 2 | . . . . . 2 . 1 . Melee 1 | . . . . . . . . 1 Uniques/NPCs Destroyed . | . . . . . . . . . Combat | -11 -10 -9 -9 -9 -7 -6 -6 -5 -------- Run | Jun Mat Mat Sto Rec Fac Fac DSF Fac Damage Taken 11414 | . 214 471 398 35 3071 . 1035 6190 Core 2099 | . 14 51 32 8 617 . 368 1009 Absorbed by Shields 1817 | . . 8 . . 696 . 173 940 Redirected to Shielding 50 | . . . 5 1 22 . 22 . Regen/Repaired (Parts) 2091 | . . 45 79 . 211 . . 1756 Core Remaining (%) 67 | 100 94 . . 77 11 . 56 . Volleys Fired 592 | 11 40 79 50 5 169 . 26 212 Largest 2 | 2 2 2 2 2 2 . 2 2 Hottest 171 | 40 40 99 99 91 116 . 84 171 Shots Fired 1035 | 22 76 157 100 10 307 . 36 327 Gun 641 | 22 76 98 52 5 137 . . 251 Cannon 364 | . . 59 48 5 156 . 20 76 Launcher 30 | . . . . . 14 . 16 . Special . | . . . . . . . . . Kinetic 614 | 22 76 79 50 5 168 . 20 194 Thermal 349 | . . 78 50 5 125 . . 91 Explosive 30 | . . . . . 14 . 16 . Electromagnetic 42 | . . . . . . . . 42 Robot Hit Streak 66 | 15 16 28 26 8 66 . 15 32 Robot Miss Streak 3 | 2 3 2 2 1 3 . 2 2 Penetration Max 1 | . . . . . 1 . . 1 Secondary Targets 5 | . . . . . . . . 5 Max Gunslinging Chain 1 | . . . . . . . . 1 Shots Hit Robots 894 | 19 58 125 74 8 232 . 39 339 Core Hits 384 | 5 25 50 20 3 109 . 38 134 Critical Kills 3 | . . . . . 1 . . 2 Critical Parts Destroyed 5 | . . 1 . . 1 . . 3 Critical Strikes 42 | . . 7 7 . 8 . 2 18 Burn 10 | . . 4 5 . 1 . . . Meltdown 1 | . . . . . 1 . . . Destroy 9 | . . 1 . . 2 . . 6 Blast 14 | . . 2 2 . 4 . 2 4 Sever 8 | . . . . . . . . 8 Melee Attacks 94 | . 1 2 4 . 16 . 11 60 Impact . | . . . . . . . . . Slashing 94 | . 1 2 4 . 16 . 11 60 Piercing . | . . . . . . . . . Sneak Attacks 4 | . . . . . . . 1 3 Combat Hostiles . | . . . . . . . . . Follow-up Attacks . | . . . . . . . . . Damage Inflicted 22766 | 200 712 1930 1408 141 6342 . 2005 10028 Guns 9510 | 200 710 965 641 59 1727 . . 5208 Cannons 7790 | . . 950 767 82 3216 . 502 2273 Explosions 2765 | . . . . . 1399 . 1366 . Melee 2675 | . . . . . . . 137 2538 Ramming 26 | . 2 15 . . . . . 9 Kinetic 10481 | 200 710 942 699 59 2670 . 502 4699 Thermal 6028 | . . 973 709 82 2510 . . 1754 Explosive 2528 | . . . . . 1162 . 1366 . Electromagnetic 1028 | . . . . . . . . 1028 Impact . | . . . . . . . . . Slashing 2675 | . . . . . . . 137 2538 Piercing . | . . . . . . . . . Highest Corruption 9 | . 1 . . . 2 . . 9 Average Corruption 2 | . 1 . . . 1 . . 2 Corruption Purged 35 | . . . . . 6 . . 29 Corruption Blocked . | . . . . . . . . . Effects 50 | . 3 . . . 8 . . 39 Message Errors 13 | . . . . . 1 . . 12 Matter Fused 14 | . 1 . . . 3 . . 10 Heat Flow Errors 1 | . . . . . . . . 1 Energy Discharges 7 | . 1 . . . . . . 6 Parts Rejected 3 | . . . . . . . . 3 Parts Fused 1 | . . . . . . . . 1 Data Loss (minor) 8 | . 1 . . . 2 . . 5 Data Loss (major) 1 | . . . . . 1 . . . Alerts 1 | . . . . . . . . 1 Weapon Failures 1 | . . . . . 1 . . . Overload Shots . | . . . . . . . . . Overflow Damage 448 | . . 2 . . 93 . 26 327 Projectiles 201 | . . 2 . . 34 . 13 152 Explosions 72 | . . . . . 59 . 13 . Melee 175 | . . . . . . . . 175 Knockbacks 31 | . . 3 . . 15 . 3 10 Impact . | . . . . . . . . . Kinetic 30 | . . 3 . . 14 . 3 10 Secondary 1 | . . . . . 1 . . . Self-Inflicted Damage 88 | . . . . . 50 . 35 3 Shots 7 | . . . . . 4 . 3 . Rammed 1 | . . . . . . . . 1 Targets Rammed 6 | . 1 3 . . . . . 2 Kicked 5 | . 1 3 . . . . . 1 Crushed . | . . . . . . . . . Highest Temperature 2156 | . 9 24 22 . 732 . 2156 404 Average Temperature 246 | . 3 9 6 . 302 . 671 102 Received Heat Transfer 3875 | . 177 285 264 27 785 . 71 2266 Effects 53 | . . . . . 34 . 17 2 Shutdowns 2 | . . . . . 1 . 1 . Energy Bleed 4 | . . . . . 2 . 1 1 Interference 7 | . . . . . 7 . . . Matter Decay 6 | . . . . . 3 . 3 . Short Circuit 5 | . . . . . 3 . 1 1 Damage (minor) 8 | . . . . . 6 . 2 . Damage (major) 16 | . . . . . 9 . 7 . Damage (core) 5 | . . . . . 3 . 2 . Siege Activations . | . . . . . . . . . Robots Corrupted 3 | . . . . . . . . 3 Combat Hostiles 2 | . . . . . . . . 2 Parts Fried 6 | . . . . . . . . 6 Impact Corruptions . | . . . . . . . . . Robots Melted 3 | . . . 1 . 1 . . 1 Combat Hostiles 3 | . . . 1 . 1 . . 1 Parts Melted 16 | . . 5 3 . 5 . . 3 Heat Transferred 11820 | . . 2886 1813 148 4027 . . 2946 Parts Sabotaged . | . . . . . . . . . Parts Stolen . | . . . . . . . . . Parts Stripped . | . . . . . . . . . Power Chain Reactions 2 | . . . . . 2 . . . Missiles Intercepted . | . . . . . . . . . Alert | -11 -10 -9 -9 -9 -7 -6 -6 -5 ------- Run | Jun Mat Mat Sto Rec Fac Fac DSF Fac Peak Influence 442 | 15 247 362 360 86 296 47 442 297 Initial 172 | . 7 . 15 . 50 47 27 172 Average 83 | 7 58 84 102 7 73 47 282 86 Maximum Alert Level 2 | . 1 1 1 . 1 . 2 1 Low Security (%) 87 | 100 89 83 75 100 89 100 26 93 Level 1 12 | . 10 16 24 . 10 . 59 6 Level 2 . | . . . . . . . 14 . Level 3 . | . . . . . . . . . Level 4 . | . . . . . . . . . Level 5 . | . . . . . . . . . High Security . | . . . . . . . . . Max Security . | . . . . . . . . . Sterilizations 1 | . . . . . . . 1 . Squads Dispatched 37 | . 1 5 1 . 16 . 2 12 Investigation 9 | . 1 2 1 . 2 . . 3 Extermination 13 | . . . . . 6 . . 7 Reinforcement 15 | . . 3 . . 8 . 2 2 Assault . | . . . . . . . . . Garrison . | . . . . . . . . . Intercept . | . . . . . . . . . Searches Triggered . | . . . . . . . . . Construction Impeded 5 | . . . . . 3 . . 2 Haulers Reinforced . | . . . . . . . . . Active Scanning Responses . | . . . . . . . . . Cargo Convoy Interrupts 1 | . . . . . 1 . . . Stealth | -11 -10 -9 -9 -9 -7 -6 -6 -5 --------- Run | Jun Mat Mat Sto Rec Fac Fac DSF Fac Distress Signals 4 | . . 3 . . 1 . . . Communications Jammed . | . . . . . . . . . Distress Signals . | . . . . . . . . . Times Spotted 238 | . 17 36 23 3 59 . 18 82 Peak Tracking Total 9 | . 5 7 4 2 7 . 4 9 Tactical Retreats 15 | . 1 . 1 . 2 . 7 4 Traps | -11 -10 -9 -9 -9 -7 -6 -6 -5 ------- Run | Jun Mat Mat Sto Rec Fac Fac DSF Fac Traps Triggered 15 | . 1 . . . 8 . 1 5 Indirectly . | . . . . . . . . . Trap Hack Attempts . | . . . . . . . . . Triggered . | . . . . . . . . . Disarmed 6 | . . 6 . . . . . . Reprogrammed 16 | . 6 5 5 . . . . . Reused . | . . . . . . . . . Traps Extracted . | . . . . . . . . . Installed . | . . . . . . . . . Triggered . | . . . . . . . . . Machines | -11 -10 -9 -9 -9 -7 -6 -6 -5 ---------- Run | Jun Mat Mat Sto Rec Fac Fac DSF Fac Machines Disabled 9 | . . . 4 . 2 . 1 2 Max in Single Turn 1 | . . . 1 . 1 . 1 1 Garrison Access 1 | . . . . . . . . 1 Machines Repaired . | . . . . . . . . . Machines Sabotaged . | . . . . . . . . . Overloaded Fab Kills . | . . . . . . . . . Hacking | -11 -10 -9 -9 -9 -7 -6 -6 -5 --------- Run | Jun Mat Mat Sto Rec Fac Fac DSF Fac Machines Accessed 77 | . 9 10 11 13 13 1 . 20 Terminals 40 | . 8 5 8 6 7 1 . 5 Fabricators 4 | . . . . . . . . 4 Repair Stations 7 | . . 1 2 . 2 . . 2 Recycling Units 17 | . 1 2 1 7 1 . . 5 Scanalyzers 8 | . . 2 . . 3 . . 3 Garrison Access 1 | . . . . . . . . 1 Total Hacks 201 | . 20 30 26 36 28 1 . 60 Successful 155 | . 17 26 21 26 22 1 . 42 Failed 46 | . 3 4 5 10 6 . . 18 Catastrophic 6 | . . 1 1 1 . . . 3 Database Lockouts . | . . . . . . . . . Manual 40 | . 8 5 8 8 7 . . 4 Terminals 115 | . 19 18 20 28 15 1 . 14 Fabricators 14 | . . . . . . . . 14 Repair Stations 18 | . . 4 5 . 5 . . 4 Recycling Units 31 | . 1 2 1 8 2 . . 17 Scanalyzers 20 | . . 6 . . 6 . . 8 Garrison Access 3 | . . . . . . . . 3 Terminal Hacks 51 | . 9 9 9 11 6 1 . 6 Part Schematic 6 | . . . . 2 1 . . 3 Robot Schematic 2 | . . . . 1 . . . 1 Robot Analysis 1 | . 1 . . . . . . . Open Door 2 | . . . 2 . . . . . Open DSF 4 | . . . . . 2 1 . 1 Level Access Points 2 | . . 1 1 . . . . . Branch Access Points 2 | . . 1 1 . . . . . Emergency Access Points 6 | . 2 1 2 . . . . 1 Repair Station Index 1 | . . . . 1 . . . . Alert Level 1 | . . . . 1 . . . . Unreport Threat 6 | . 1 2 1 1 1 . . . Locate Traps 2 | . 1 . . . 1 . . . Disarm Traps 2 | . 1 1 . . . . . . Reprogram Traps 4 | . 2 1 1 . . . . . Dispatch Records 1 | . . . . 1 . . . . Hauler Manifests 1 | . . . . . 1 . . . Registered Components 1 | . . . . 1 . . . . Zone Layout 7 | . 1 2 1 3 . . . . Fabricator Hacks 13 | . . . . . . . . 13 Network Status 1 | . . . . . . . . 1 Load Schematic 6 | . . . . . . . . 6 Build 6 | . . . . . . . . 6 Repair Station Hacks 17 | . . 4 5 . 4 . . 4 Scan Component 9 | . . 2 3 . 2 . . 2 Repair 8 | . . 2 2 . 2 . . 2 Recycling Unit Hacks 24 | . 1 2 1 8 2 . . 10 Report Inventory 17 | . 1 2 1 7 1 . . 5 Retrieve Components 7 | . . . . 1 1 . . 5 Scanalyzer 16 | . . 6 . . 5 . . 5 Insert Component 8 | . . 3 . . 2 . . 3 Analyze 8 | . . 3 . . 3 . . 2 Garrison Access Hacks 1 | . . . . . . . . 1 Seal Access 1 | . . . . . . . . 1 Unauthorized Hacks 32 | . 7 5 6 6 5 . . 3 Terminals 32 | . 7 5 6 6 5 . . 3 Botnet 32 | . 7 5 6 6 5 . . 3 Fabricators . | . . . . . . . . . Repair Stations . | . . . . . . . . . Recycling Units . | . . . . . . . . . Scanalyzers . | . . . . . . . . . Garrison Access . | . . . . . . . . . Data Cores Recovered 1 | . . . 1 . . . . . Used . | . . . . . . . . . Hacking Detections 51 | . 6 9 5 9 8 1 . 13 Full Trace Events 10 | . 3 2 2 1 . . . 2 Feedback Events 3 | . 1 . . . . . . 2 Corruption 3 | . 1 . . . . . . 2 Feedback Blocked . | . . . . . . . . . Robot Schematics Acquired 2 | . . . . 1 . . . 1 Robots Built 6 | . . . . . . . . 6 Authchips . | . . . . . . . . . Time 198 | . . . . . . . . 198 Total Robot Build Rating 12 | . . . . . . . . 12 Part Schematics Acquired 13 | . . 3 . 2 3 . . 5 Parts Built 8 | . . . . . . . . 8 Authchips . | . . . . . . . . . Time 336 | . . . . . . . . 336 Total Part Build Rating 32 | . . . . . . . . 32 Parts Repaired 8 | . . 2 2 . 2 . . 2 Time 272 | . . 70 64 . 38 . . 100 Parts Recycled . | . . . . . . . . . Recycled Matter . | . . . . . . . . . Retrieved Matter . | . . . . . . . . . Retrieved Components 53 | . . . . 10 1 . . 42 Parts Scanalyzed 8 | . . 3 . . 2 . . 3 Part Schematics Acquired 7 | . . 3 . . 2 . . 2 Parts Damaged . | . . . . . . . . . Bothacking | -11 -10 -9 -9 -9 -7 -6 -6 -5 ------------ Run | Jun Mat Mat Sto Rec Fac Fac DSF Fac Used RIF Installer . | . . . . . . . . . Robots Hacked . | . . . . . . . . . Non-combat . | . . . . . . . . . Combat . | . . . . . . . . . Robot Hacks Applied . | . . . . . . . . . Relay Couplers Released 4 | . . . . . . . . 4 Programmers 4 | . . . . . . . . 4 Fabnet Peak Effective % . | . . . . . . . . . Robots Rewired . | . . . . . . . . . Allies Hacked 2 | . . . . . . . . 2 Hacks Repelled . | . . . . . . . . . Allies | -11 -10 -9 -9 -9 -7 -6 -6 -5 -------- Run | Jun Mat Mat Sto Rec Fac Fac DSF Fac Total Allies 24 | . . . 12 . 3 . . 9 Largest Group 10 | . . . 10 3 3 . . 3 Highest-Rated Group 131 | . . . 131 31 93 . . 93 Highest-Rated Ally 100 | . . . 100 15 31 . . 31 Total Orders 1 | . . . . . . . . 1 EXPLORE 1 | . . . . . . . . 1 Ally Attacks 107 | . . . 48 5 17 . . 37 Total Damage 1771 | . . . 494 71 253 . . 953 Kills 19 | . . . 10 1 2 . . 6 Allies Corrupted . | . . . . . . . . . Allies Melted . | . . . . . . . . . Intel | -11 -10 -9 -9 -9 -7 -6 -6 -5 ------- Run | Jun Mat Mat Sto Rec Fac Fac DSF Fac Robot Analysis Total 1 | . 1 . . . . . . . Derelict Logs Recovered . | . . . . . . . . . Drone Launches 2 | . . . . . . . . 2 Drone Recoveries 1 | . . . . . . . . 1 Exploration | -11 -10 -9 -9 -9 -7 -6 -6 -5 ------------- Run | Jun Mat Mat Sto Rec Fac Fac DSF Fac Turns Passed 13331 | 122 1126 1469 1317 782 3767 8 491 4249 Spaces Moved 7485 | 70 715 794 753 592 1978 3 256 2324 Core 19 | 15 . . . . 1 . . 3 Treads 2 | . . . . . . . . 2 Legs 7274 | 55 715 794 753 592 1977 3 256 2129 Wheels 103 | . . . . . . . . 103 Hover 87 | . . . . . . . . 87 Flight . | . . . . . . . . . Fastest Speed 50 | 50 120 120 120 120 119 260 122 87 Average Speed 135 | 105 120 120 127 120 150 260 141 139 Slowest Speed 1250 | 120 190 120 190 120 850 260 260 1250 Overloaded Moves . | . . . . . . . . . Propulsion Burnouts . | . . . . . . . . . Robots Hopped . | . . . . . . . . . Cave-ins Triggered . | . . . . . . . . . Exploration Rate (%) 70 | 4 97 80 94 99 46 . 95 47 Regions Visited 8 Branch Regions 2 Pre-discovered Areas . | . . . . . . . . . Known Exits Taken 7 | 1 1 1 1 1 1 1 . . Unknown Exits Taken . | . . . . . . . . . Scrap Searched . | . . . . . . . . . Spaces Dug 3 | . 1 2 . . . . . . Terrain Destroyed 213 | . 1 3 . . 108 . 87 14 Melee 3 | . 1 2 . . . . . . Projectile 26 | . . 1 . . 11 . . 14 AOE 184 | . . . . . 97 . 87 . Terrain Rammed . | . . . . . . . . . Walls Destroyed . | . . . . . . . . . Machines Disabled . | . . . . . . . . . Actions | -11 -10 -9 -9 -9 -7 -6 -6 -5 --------- Run | Jun Mat Mat Sto Rec Fac Fac DSF Fac Total 9470 | 97 902 1149 999 653 2427 4 326 2913 Wait 835 | 1 92 223 130 50 157 . 2 180 Move 7477 | 69 714 793 752 591 1977 2 255 2324 Hop . | . . . . . . . . . Pick Up 154 | 7 22 11 16 3 31 . 18 46 Fast Attach 17 | 3 . 2 2 . 5 . . 5 Attach 81 | 5 6 3 2 1 16 2 11 35 Detach 9 | 1 1 . . . . . . 7 Swap 110 | . 13 18 26 2 27 . 2 22 Drop 92 | . 12 15 17 1 29 . 1 17 Fire 592 | 11 40 79 50 5 169 . 26 212 Melee 94 | . 1 2 4 . 16 . 11 60 Ram 1 | . . . . . . . . 1 Kick 5 | . 1 3 . . . . . 1 Crush . | . . . . . . . . . Escape Stasis 2 | . . . . . . . . 2 Rewire 1 | . . . . . . . . 1 Trap . | . . . . . . . . . Miscellaneous . | . . . . . . . . . Route ------- -11/Junkyard -10/Materials (discovered 5 exits: *Mat x3 / *Min x2) -9/Materials (discovered 7 exits: *Mat x3 / *Min x2 / *Sto x2) -9/Storage (discovered 2 exits: *Mat / *Rec) -9/Recycling -7/Factory (discovered 3 exits: *Fac x2 / *Low) -6/Factory -6/DSF -5/Factory (discovered 3 exits: *Fac x3) History --------- Turn | Location | Event 12 | -11/Junkyard | Identified exit to Materials 12 | -11/Junkyard | Discovered exit to Materials (range 15) 123 | -11/Junkyard | Entered Materials 123 | -10/Materials | Evolved 1 slot: Utility x1 195 | -10/Materials | Identified exit to Mines 195 | -10/Materials | Discovered exit to Mines (range 7) 300 | -10/Materials | Build established: Hacker-Mutant 392 | -10/Materials | Identified exit to Materials 392 | -10/Materials | Discovered exit to Materials (range 16) 826 | -10/Materials | Discovered exit to Materials (range 3) 1059 | -10/Materials | Discovered exit to Mines (range 12) 1165 | -10/Materials | Discovered exit to Materials (range 16) 1249 | -10/Materials | Entered another Materials area 1249 | -9/Materials | Evolved 2 slots: Propulsion x1, Utility x1 1344 | -9/Materials | Identified exit to Mines 1344 | -9/Materials | Identified exit to Storage 1344 | -9/Materials | Identified exit to Materials 2331 | -9/Materials | Repaired Imp. Aluminum Leg 2370 | -9/Materials | Repaired Imp. Terrain Scanner 2718 | -9/Materials | Entered Storage 2951 | -9/Storage | Assisted by bots powering up and referring to "LRC-V3" 3048 | -9/Storage | Identified exit to Recycling 3275 | -9/Storage | Build established: Commander-Mutant 3289 | -9/Storage | Found Prototype Protection 3290 | -9/Storage | Identified Lgt. Regenerative Plating 3521 | -9/Storage | Repaired Imp. Aluminum Leg 3685 | -9/Storage | Met 01-MTF 3881 | -9/Storage | Repaired Weight Redist. System 3942 | -9/Storage | Build established: Hacker-Mutant 4035 | -9/Storage | Entered Recycling 4035 | -9/Recycling | Accompanied by 4 allies (01-MTF) 4035 | -9/Recycling | Found Scrap Engine 4040 | -9/Recycling | 01-MTF left 4567 | -9/Recycling | Identified exit to Factory 4567 | -9/Recycling | Discovered exit to Factory (range 15) 4817 | -9/Recycling | Entered Factory 4817 | -7/Factory | Accompanied by 3 allies 4817 | -7/Factory | Evolved 4 slots: Power x1, Propulsion x1, Utility x2 4977 | -7/Factory | Identified exit to Lower Caves 4977 | -7/Factory | Discovered exit to Lower Caves (range 9) 4986 | -7/Factory | Identified exit to Factory 4986 | -7/Factory | Discovered exit to Factory (range 9) 5461 | -7/Factory | Repaired Imp. Aluminum Leg 6175 | -7/Factory | Repaired Imp. Titanium Leg 6453 | -7/Factory | Allied Derelicts emerged from ambush trap array 6469 | -7/Factory | P-60 Hacker assimilated allied 8B-7KO(g) 6506 | -7/Factory | Cargo convoy interrupted 6562 | -7/Factory | Core integrity fell below 50% 6648 | -7/Factory | Lost 4 parts (1p1n1u1w) 7126 | -7/Factory | Lost 3 parts (1p2n) 8467 | -7/Factory | Discovered exit to Factory (range 13) 8477 | -7/Factory | Core integrity fell below 20% 8511 | -7/Factory | Lost 4 parts (1p1n1u1w) 8584 | -7/Factory | Entered another Factory area 8584 | -6/Factory | Evolved 2 slots: Propulsion x1, Utility x1 8592 | -6/Factory | Identified exit to DSF 8592 | -6/Factory | Entered DSF 8639 | -6/DSF | Identified exit to Factory 8639 | -6/DSF | Discovered exit to Factory (range 11) 8644 | -6/DSF | Additional patrols routed to DSF 8804 | -6/DSF | Lost 3 parts (1n1u1w) 8945 | -6/DSF | Sterilization system engaged 8965 | -6/DSF | Ambient heat levels rising (+10) 8980 | -6/DSF | Ambient heat levels rising (+10) 8995 | -6/DSF | Ambient heat levels rising (+10) 9010 | -6/DSF | Ambient heat levels rising (+10) 9025 | -6/DSF | Ambient heat levels rising (+10) 9040 | -6/DSF | Ambient heat levels rising (+10) 9055 | -6/DSF | Ambient heat levels rising (+10) 9070 | -6/DSF | Ambient heat levels rising (+10) 9083 | -6/DSF | Entered Factory 9083 | -5/Factory | Evolved 2 slots: Propulsion x1, Utility x1 9558 | -5/Factory | Identified exit to Factory 9558 | -5/Factory | Discovered exit to Factory (range 6) 9728 | -5/Factory | Allied Derelicts emerged from ambush trap array 9801 | -5/Factory | Found Prototype Launcher 9802 | -5/Factory | Identified Rocket Array 10116 | -5/Factory | Fabricated L-31 Rogue? 10164 | -5/Factory | P-70 Sage assimilated allied Rogue 6a 10311 | -5/Factory | Fabricated L-31 Rogue? 10901 | -5/Factory | Spotted B-75 Beast 10926 | -5/Factory | Destroyed B-75 Beast 11148 | -5/Factory | Lost 6 parts (1p2n2u1w) 11246 | -5/Factory | Core integrity fell below 50% 11286 | -5/Factory | Lost 15 parts (3p4n6u2w) 11508 | -5/Factory | Discovered exit to Factory (range 18) 11589 | -5/Factory | Repaired Broken Adv. Shield Generator 11696 | -5/Factory | Lost 4 parts (1p3u) 11852 | -5/Factory | Core integrity fell below 20% 11896 | -5/Factory | Fabricated Imp. System Restoration Module (x2) 11899 | -5/Factory | Fabricated Imp. Titanium Leg? 12094 | -5/Factory | Fabricated Imp. Titanium Leg? 12315 | -5/Factory | Repaired Matter Filter 12343 | -5/Factory | Fabricated Adv. Weight Redist. System (x2) 12969 | -5/Factory | Build established: Hacker-Construct 13273 | -5/Factory | Discovered exit to Factory (range 15) 13332 | -5/Factory | Destroyed by P-70 Sage with Tesla Rifle Last Messages --------------- 13289_ Imp. Heat Sink melted. 13289_ P-70 Sage destroyed. 13294_ Arm. Scrap Engine consumes Antigrav System. 13297_ Arm. Scrap Engine consumes Mic. Fission Core. 13298_ Arm. Scrap Engine consumes Tesla Rifle. 13301_ Arm. Scrap Engine consumes Hpw. Shock Rifle. 13302_ Acquired 52 matter. 13303_ Acquired 5 matter. 13305_ Arm. Scrap Engine consumes Antigrav System. 13308_ ALERT: Rogue bot located, Programmers report to Factory Zone 7I. 13316_ Construction Platform disabled. 13318_ K-01 Serf collects debris. 13318_ P-70 Sage knocked back. 13319_ Slug penetrates Construction Platform. 13321_ P-70 Sage knocked back. 13322_ Angular-Neutrino Engine destroyed. 13322_ Arm. Scrap Engine damaged due to network destabilization (-5). 13322_ Penetrated by Slug. 13322_ P-70 Sage resets P-70 Sage, system corruption cleaned. 13327_ Penetrated by Slug. Map ----- +----------------------------------------------------+ | ?????????????????????????????????????????????? | | ?????????????????????????????????????????????? | | ?????????????????????????????????????????????? | | ?????????????????????????????????????????????? | | ?????????????????????????????????????????????? | | ?????????????????????????????????????????????? | | ?????????????????????????????????????????????? | | ?????????????????????????????????????????????? | | ?????????????????????????????????????????????? | | ?????????????????????????????????????????????? | | ?????????????????????????????????????????????? | | ?????????????????????????????????????????????? | | ?????????????????????????????????????????????? | | ?????????????????????????????????????????????? | | ?????????????????????????????????????????????? | | ?????????????????????????????????????????????? | | ?????????????????????????????????????????????? | | ?????????????????????????????????????????????? | | ????????????????????????##???????????????????? | | ????????????????????#### ###?????????????????? | | ??????#?????????????# !]#?????????????????? | | ??????# ????????????# ! !]#?????????????????? | | ??????# ???????????# #?????????? ????? | | ???????? ??????????# % #?????????? ???? | | # ###+"########## Y """#?????????? "???? | | # < ]!%!] #@ """"#?????????? ^ "???? | | # !!!! #pp """#?????????# """"" | | # ]]! |; ""#?????????# """"? | | # % !# """"#?????????# ? | | ? % # %""""#?????????# ?? | | ? ###########"# # """"#?????????+ ??? | | ?? ????????????### ; #?????????# ??? | | ??????????????????# # #?????????# ???? | | ??????????????????#%# #?????????# #???? | | ??????????????????# ########?????????# #???? | | ????????????????### ###????########### #???? | | ????????????????# #????# # #???? | | ????????????????# ###### # ##### | | ????????????????# + #! | | ????????????????# ###### ! /% % | | ????????????????# #????# #% | | ????????????????#######????# # | | ???????????????????????????# # | | ???????????????????????????# # ##### | | ???????????????????????????########### #???? | | ?????????????????????????????????????# #???? | | ?????????????????????????????????????# #???? | | ?????????????????????????????????????# #???? | | ?????????????????????????????????????# #???? | | ?????????????????????????????????????# #???? | +----------------------------------------------------+ Best States ------------- Heat Dissipation 78 Energy Generation 34 Energy Capacity 490 Matter Stores 300 Matter Capacity 300 Sight Range 16 Robot Scan Range 16 Terrain Scan Range 16 Terrain Scan Density 85 Additional Mass Support 9 Base Temperature (-) 150 EM Shielding 2 Armor Coverage 225 Resistance: KI 60 Resistance: TH 35 Resistance: EX 35 Resistance: EM 35 Resistance: I 35 Resistance: S 35 Resistance: P 35 Core Shielding 20 Evasion (%) 57 Targeting Accuracy 6 Recoil Reduction 1 Matter Filtering 30 Offensive Hacking 30 Defensive Hacking 24 Item Schematics ----------------- Hcp. Battery | -9/Materials | Scanalyzed Mining Claw | -9/Materials | Scanalyzed Huge Storage Unit | -9/Materials | Scanalyzed Imp. Titanium Leg | -9/Recycling | Hacked Matter Filter | -9/Recycling | Hacked Mic. Fission Core | -7/Factory | Hacked Imp. Field Recycling Unit | -7/Factory | Scanalyzed Adv. Weight Redist. System | -7/Factory | Scanalyzed Matter Neutralizer | -5/Factory | Hacked Arm. Medium Treads | -5/Factory | Hacked Hvy. Shock Bomb Launcher | -5/Factory | Hacked Imp. System Restoration Module | -5/Factory | Scanalyzed Imp. System Shield | -5/Factory | Scanalyzed Robot Schematics ------------------ L-31 Rogue | -9/Recycling | Hacked P-70 Sage | -5/Factory | Hacked Fabricated ------------ L-31 Rogue | x3 | -5/Factory L-31 Rogue | x3 | -5/Factory Imp. System Restoration Module | x2 | -5/Factory Imp. Titanium Leg | x2 | -5/Factory Imp. Titanium Leg | x2 | -5/Factory Adv. Weight Redist. System | x2 | -5/Factory Alien Tech Used ----------------- None Achievements -------------- None Challenges ------------ None Game ------ Seed FireTerrainDetonator Manual? 0 Play Time 03:09:45 Cumulative 130.4 hours Start 2023.04.24 @ 14:32:42 End 2023.05.07 @ 18:41:40 Sessions 7 Manual Loads 0 Difficulty Explorer Special Mode None Game No. 115 Rogue 0 Adventurer 102 Explorer 13 Win Type - Total 0 Types 0/0/0/0/0/0/0/0/0 Lore% 43 Gallery% 55 Achievement% 43 Wizard Run 0 Options --------- ASCII 0 Keyboard 0 Movement Mouse Keybinds 0 Fullscreen 2 Font 16/SmallcapsGlow Map View 113x50 Tactical HUD 1 Map Filters NONE Filters NONE Steam 1 RUN: 4e751b63-4e3d-4684-9342-7b0036ccf390